bitfinex-derivatives/quotes_SOLF0:USTF0_20250202
["timestamp","ask_amount","ask_price","bid_price","bid_amount"]
[1738470822916,10.73983391,210.76,210.7,0.03230902]
[1738470823213,4.7467,210.75,210.7,0.03230902]
[1738470823513,4.7472,210.72,210.7,0.03230902]
[1738470823705,10.73983391,210.73,210.7,0.03230902]
[1738470823903,10.73983391,210.73,210.69,0.03529117]
[1738470824813,15.48683391,210.73,210.69,0.03529117]
[1738470825704,10.73983391,210.76,210.69,0.03529117]
[1738470825905,10.73983391,210.82,210.67,10.73983391]
[1738470826312,4.7454,210.81,210.74,4.7467]
[1738470826713,10.73983391,210.82,210.67,10.73983391]
[1738470826909,10.73983391,210.79,210.75,0.03126546]
[1738470827209,3.52,210.86,210.75,0.03126546]
[1738470827210,10.73983391,210.76,210.75,0.03126546]
[1738470827419,10.73983391,210.76,210.64,10.73983391]
[1738470827420,10.73983391,210.76,210.63,1.4429]
[1738470827615,10.73983391,210.76,210.73,0.03144489]
[1738470827809,4.7469,210.74,210.73,0.03144489]
[1738470828117,10.73983391,210.76,210.72,0.03027562]
[1738470828313,10.73983391,210.73,210.72,0.03027562]
[1738470828610,4.7473,210.72,210.65,4.7487]
[1738470828815,4.7473,210.72,210.7,0.03275044]
[1738470829011,4.747,210.74,210.7,0.03275044]
[1738470829219,10.73983391,210.76,210.7,0.03275044]
[1738470829511,10.73983391,210.76,210.64,10.73983391]
[1738470829717,10.73983391,210.76,210.71,0.03273815]
[1738470830118,10.73983391,210.82,210.71,0.03273815]
[1738470830419,10.73983391,210.82,210.74,4.7466]
[1738470830819,4.7459,210.78,210.74,0.03228606]
[1738470831016,10.73983391,210.79,210.74,0.03228606]
[1738470832018,4.7463,210.77,210.74,0.03228606]
[1738470832220,10.73983391,210.79,210.74,0.03228606]
[1738470832421,10.73983391,210.82,210.74,0.03228606]
[1738470833318,4.7454,210.8,210.75,4.7465]
[1738470834121,10.73983391,210.79,210.74,0.03228606]
[1738470834421,10.73983391,210.76,210.74,0.03228606]
[1738470835321,4.7466,210.75,210.74,0.03228606]
[1738470836618,4.7466,210.75,210.67,4.7483]
[1738470836923,4.7479,210.69,210.62,3.0866]
[1738470837723,4.7479,210.69,210.63,4.7492]
[1738470838023,0.03106548,210.68,210.63,0.03072723]
[1738470842119,0.03106548,210.68,210.65,4.7486]
[1738470842425,0.03106548,210.68,210.63,0.03072723]
[1738470844722,0.03106548,210.68,210.63,4.77992723]
[1738470844927,0.03106548,210.68,210.63,0.03072723]
[1738470846725,0.03106548,210.68,210.65,4.7487]
[1738470848426,10.77089939,210.68,210.63,0.03072723]
[1738470848624,10.73983391,210.64,210.52,1.5074]
[1738470849329,10.73983391,210.64,210.54,2.97667963]
[1738470849530,10.73983391,210.64,210.52,1.5074]
[1738470849729,0.03145428,210.61,210.57,0.03613662]
[1738470851335,0.03145428,210.61,210.58,4.7504]
[1738470851830,0.03145428,210.61,210.57,0.03613662]
[1738470852031,0.03145428,210.61,210.6,4.7499]
[1738470853025,6.5572153,210.72,210.62,4.7494]
[1738470853222,10.73983391,210.73,210.62,4.7494]
[1738470853531,4.7479,210.69,210.62,4.7494]
[1738470854233,0.03144799,210.68,210.63,0.0348177]
[1738470854731,4.7484,210.67,210.63,0.0348177]
[1738470854931,10.73983391,210.67,210.63,0.0348177]
[1738470855334,4.7487,210.66,210.63,0.0348177]
[1738470855533,10.73983391,210.67,210.63,0.0348177]
[1738470856431,10.73983391,210.64,210.63,0.0348177]
[1738470856834,10.73983391,210.64,210.54,1.4806]
[1738470857635,4.7497,210.62,210.55,4.7508]
[1738470857935,0.03278378,210.61,210.56,0.0344059]
[1738470858637,10.73983391,210.57,210.56,0.0344059]
[1738470859039,10.73983391,210.57,210.45,1.5263]
[1738470859235,10.73983391,210.57,210.46,2.98769925]
[1738470859538,4.7511,210.55,210.47,7.74039925]
[1738470859738,4.7511,210.55,210.45,1.5263]
[1738470859932,10.73983391,210.57,210.46,2.98823013]
[1738470860129,0.03370415,210.52,210.49,4.7524]
[1738470860331,10.73983391,210.65,210.48,10.73983391]
[1738470860533,10.73983391,210.65,210.51,10.73983391]
[1738470861133,4.7493,210.63,210.55,4.751]
[1738470861433,0.03461194,210.61,210.57,0.03292727]
[1738470862646,0.03461194,210.61,210.57,4.78342727]
[1738470862846,0.03461194,210.61,210.57,0.03292727]
[1738470863153,0.03461194,210.61,210.57,4.78342727]
[1738470863345,0.03461194,210.61,210.57,0.03292727]
[1738470864748,10.73983391,210.59,210.57,0.03292727]
[1738470865945,4.7504,210.58,210.57,0.03292727]
[1738470866446,10.73983391,210.59,210.57,0.03292727]
[1738470867749,15.49003391,210.59,210.57,0.03292727]
[1738470869248,10.73983391,210.59,210.57,0.03292727]
[1738470871047,4.75,210.6,210.57,0.03292727]
[1738470871252,4.7502,210.59,210.57,0.03292727]
[1738470871653,10.73983391,210.59,210.57,0.03292727]
[1738470871953,4.7504,210.58,210.57,0.03292727]
[1738470872550,10.73983391,210.59,210.45,1.5263]
[1738470872751,10.73983391,210.52,210.45,1.5263]
[1738470873151,10.73983391,210.52,210.45,6.2794]
[1738470873353,10.73983391,210.52,210.45,1.5263]
[1738470873651,4.7524,210.49,210.46,0.03138684]
[1738470875852,10.73983391,210.49,210.46,0.03138684]
[1738470876051,4.7529,210.47,210.46,0.03138684]
[1738470877257,10.73983391,210.49,210.4,1.4997]
[1738470877460,4.7536,210.44,210.38,4.7547]
[1738470877752,10.73983391,210.42,210.3,10.73983391]
[1738470878055,4.7545,210.4,210.33,4.7558]
[1738470878457,4.7545,210.4,210.28,1.4891]
[1738470878668,0.03555185,210.39,210.35,0.03203464]
[1738470879660,4.7549,210.38,210.35,0.03203464]
[1738470880055,10.77538576,210.39,210.35,0.03203464]
[1738470880359,15.53008576,210.39,210.35,0.03203464]
[1738470880658,0.03555185,210.39,210.35,0.03203464]
[1738470880957,0.03555185,210.39,210.37,4.7551]
[1738470881159,0.03555185,210.39,210.35,0.03203464]
[1738470883155,10.77538576,210.39,210.35,0.03203464]
[1738470884055,4.7552,210.37,210.35,0.03203464]
[1738470886762,10.73983391,210.36,210.35,0.03203464]
[1738470888458,10.73983391,210.36,210.25,1.5005]
[1738470888662,10.73983391,210.32,210.25,1.5005]
[1738470888860,10.73983391,210.32,210.25,4.7578]
[1738470889062,10.73983391,210.32,210.22,1.4977]
[1738470889762,0.03526544,210.29,210.25,0.03039161]
[1738470892764,4.7572,210.28,210.25,0.03039161]
[1738470892959,0.03526544,210.29,210.25,0.03039161]
[1738470893464,4.79226544,210.29,210.25,0.03039161]
[1738470893768,0.03526544,210.29,210.27,4.7574]
[1738470894162,10.73983391,210.36,210.28,1.4547]
[1738470894767,10.73983391,210.33,210.28,1.4547]
[1738470895068,15.49533391,210.36,210.28,1.4547]
[1738470895565,0.03392155,210.33,210.28,1.49037851]
[1738470895758,0.03392155,210.33,210.28,6.24737851]
[1738470895964,0.03392155,210.33,210.28,1.49037851]
[1738470896462,0.03392155,210.33,210.29,4.7569]
[1738470897962,0.03392155,210.33,210.28,1.49037851]
[1738470901172,10.77375546,210.33,210.28,0.03567851]
[1738470901866,15.49663391,210.3,210.28,0.03567851]
[1738470902072,10.73983391,210.3,210.28,0.03567851]
[1738470902771,4.7569,210.29,210.28,0.03567851]
[1738470903971,4.7569,210.29,210.21,1.4488]
[1738470903972,10.73983391,210.3,210.21,1.4488]
[1738470904169,10.73983391,210.27,210.21,1.4488]
[1738470904373,10.73983391,210.27,210.17,4.7596]
[1738470904576,10.73983391,210.27,210.12,10.73983391]
[1738470904776,10.73983391,210.24,210.08,15.22963391]
[1738470905073,4.7588,210.21,210.08,15.22963391]
[1738470905274,0.03019737,210.18,210.14,0.03568983]
[1738470905674,0.03019737,210.18,210.14,4.79578983]
[1738470906772,0.03019737,210.18,210.16,4.7598]
[1738470906972,10.73983391,210.27,210.14,10.77552374]
[1738470907173,10.73983391,210.27,210.14,10.73983391]
[1738470907773,4.7583,210.23,210.17,4.7596]
[1738470908077,0.0352022,210.22,210.18,0.03486746]
[1738470908377,4.7587,210.22,210.15,4.7601]
[1738470908678,0.03571794,210.22,210.18,0.03160917]
[1738470909677,4.7591,210.2,210.18,0.03160917]
[1738470909878,10.73983391,210.21,210.18,0.03160917]
[1738470910579,4.7592,210.19,210.18,0.03160917]
[1738470916282,10.73983391,210.21,210.12,4.7608]
[1738470916480,15.49953391,210.17,210.12,4.7608]
[1738470917381,10.73983391,210.2,210.08,10.73983391]
[1738470917587,0.03350302,210.17,210.12,0.03573624]
[1738470918887,10.77333693,210.17,210.12,0.03573624]
[1738470919289,15.53303693,210.17,210.12,0.03573624]
[1738470921093,10.77333693,210.17,210.12,0.03573624]
[1738470921293,4.76,210.16,210.12,0.03573624]
[1738470921790,10.77333693,210.17,210.12,0.03573624]
[1738470922385,10.73983391,210.14,210.12,0.03573624]
[1738470922589,10.73983391,210.14,209.97,192.0]
[1738470922889,15.49823391,210.23,210.13,4.7605]
[1738470923095,10.73983391,210.2,210.06,10.73983391]
[1738470923292,10.73983391,210.17,210.03,13.75363391]
[1738470923593,10.73983391,210.17,210.12,4.7608]
[1738470923893,10.73983391,210.17,210.13,1.5771]
[1738470924091,10.77231634,210.17,210.13,6.3376]
[1738470924693,10.77231634,210.17,210.13,1.5771]
[1738470925692,10.73983391,210.14,210.12,0.0345101]
[1738470926193,4.7605,210.13,210.12,0.0345101]
[1738470927799,14.27231634,210.17,210.12,0.0345101]
[1738470927994,0.03248243,210.17,210.12,0.0345101]
[1738470928194,3.5,210.24,210.12,0.0345101]
[1738470928494,8.2582,210.24,210.16,4.7598]
[1738470928695,8.2582,210.24,210.17,2.8805]
[1738470929298,0.0344901,210.23,210.18,0.03119519]
[1738470929596,4.7928901,210.23,210.18,0.03119519]
[1738470930101,1.17939655,210.31,210.18,0.03119519]
[1738470930295,10.73983391,210.35,210.2,10.73983391]
[1738470930799,4.7563,210.32,210.24,4.7579]
[1738470930995,4.7563,210.32,210.25,1.4382]
[1738470931191,10.73983391,210.32,210.25,1.4382]
[1738470931395,0.03126352,210.28,210.25,1.4382]
[1738470931694,4.78846352,210.28,210.25,1.4382]
[1738470932291,0.03126352,210.28,210.24,0.03251971]
[1738470933002,4.78846352,210.28,210.24,0.03251971]
[1738470934501,4.7575,210.27,210.24,0.03251971]
[1738470934704,0.03126352,210.28,210.24,0.03251971]
[1738470935603,15.49753391,210.26,210.24,0.03251971]
[1738470936806,0.03126352,210.28,210.24,0.03251971]
[1738470937002,10.73983391,210.35,210.24,0.03251971]
[1738470937207,4.7558,210.34,210.24,0.03251971]
[1738470937405,4.7558,210.34,210.23,10.73983391]
[1738470937705,10.73983391,210.35,210.24,4.7579]
[1738470937902,4.757,210.29,210.19,10.73983391]
[1738470938102,0.03590423,210.32,210.27,0.03394603]
[1738470938307,10.73983391,210.35,210.22,12.17523391]
[1738470938507,10.73983391,210.35,210.27,0.03353459]
[1738470938709,0.03274574,210.32,210.27,0.03353459]
[1738470939310,4.7567,210.3,210.27,0.03353459]
[1738470940307,0.03274574,210.32,210.27,0.03353459]
[1738470940509,4.7569,210.29,210.27,0.03353459]
[1738470941210,10.77257965,210.32,210.27,0.03353459]
[1738470941412,0.03274574,210.32,210.27,0.03353459]
[1738470942506,4.7557,210.35,210.27,0.03353459]
[1738470942711,10.73983391,210.41,210.28,10.73983391]
[1738470942905,10.73983391,210.44,210.31,10.73983391]
[1738470943101,4.7534,210.45,210.34,10.73983391]
[1738470943302,1.5043,210.53,210.34,10.73983391]
[1738470943303,10.73983391,210.5,210.34,10.73983391]
[1738470943809,0.03185889,210.44,210.4,0.03148345]
[1738470944012,10.7716928,210.44,210.4,0.03148345]
[1738470944204,15.49403391,210.41,210.4,0.03148345]
[1738470944406,10.73983391,210.41,210.32,1.5703]
[1738470944606,10.73983391,210.38,210.32,1.5703]
[1738470944906,4.756,210.33,210.32,1.5703]
[1738470946009,0.03550482,210.35,210.32,1.5703]
[1738470949613,0.03550482,210.35,210.3,1.48409831]
[1738470950517,4.756,210.33,210.3,1.48409831]
[1738470950715,0.03550482,210.35,210.3,1.48409831]
[1738470952415,17.20021058,210.46,210.3,1.48409831]
[1738470952613,17.20021058,210.46,210.3,1.4536]
[1738470952915,4.7547,210.39,210.33,4.7559]
[1738470953112,4.7547,210.39,210.34,1.4841]
[1738470953616,0.03481778,210.39,210.34,1.51848774]
[1738470954318,4.7556,210.35,210.34,0.03438774]
[1738470954817,17.20021058,210.38,210.25,1.4258]
[1738470955015,17.20021058,210.34,210.25,1.4258]
[1738470956019,0.03337521,210.32,210.27,0.03050394]
[1738470956321,17.20021058,210.3,210.16,94.2]
[1738470956519,17.20021058,210.3,210.17,1.4258]
[1738470956920,17.20021058,210.3,210.17,6.1854]
[1738470957315,4.7588,210.21,210.17,1.4258]
[1738470957516,17.23574751,210.26,210.21,0.03546756]
[1738470957719,17.20021058,210.26,210.21,0.03546756]
[1738470957916,17.20021058,210.22,210.1,4.7612]
[1738470958121,17.20021058,210.22,210.07,4.4875]
[1738470958621,4.7604,210.14,210.07,4.4875]
[1738470959322,0.03122468,210.13,210.08,0.03363718]
[1738470960219,0.03122468,210.13,210.1,4.761]
[1738470960428,0.03122468,210.13,210.08,0.03363718]
[1738470960724,1.17959231,210.29,210.1,17.20021058]
[1738470960927,1.17959231,210.29,210.14,4.7602]
[1738470961426,4.7582,210.24,210.13,4.7605]
[1738470961626,1.17959231,210.29,210.1,17.20021058]
[1738470962028,0.03377494,210.22,210.17,0.03635482]
[1738470962423,1.17959231,210.29,210.17,0.03635482]
[1738470962625,3.5,210.31,210.18,17.20021058]
[1738470962929,17.20021058,210.36,210.19,1.5723]
[1738470963223,17.20021058,210.32,210.19,1.5723]
[1738470963729,4.758,210.25,210.23,0.03629384]
[1738470964334,17.20021058,210.24,210.15,1.5723]
[1738470964628,17.20021058,210.2,210.03,117.73313436]
[1738470964825,4.7602,210.15,210.07,4.7618]
[1738470965023,17.20021058,210.2,210.04,1.5723]
[1738470965233,17.20021058,210.24,210.06,17.20021058]
[1738470965426,17.20021058,210.24,210.08,4.7615]
[1738470965627,0.03580851,210.17,210.13,0.0325522]
[1738470966131,4.7599,210.16,210.13,0.0325522]
[1738470967524,4.7602,210.15,210.13,0.0325522]
[1738470968432,4.7618,210.08,210.0,1.4498]
[1738470968630,17.20021058,210.11,210.0,1.4498]
[1738470969422,17.20021058,210.11,209.99,1.4709]
[1738470969628,0.03189883,210.08,210.03,0.03349014]
[1738470969831,17.20021058,210.04,209.94,1.4498]
[1738470970027,20.70021058,210.04,209.93,1.5032]
[1738470970533,4.7642,209.97,209.93,1.5032]
[1738470970726,4.7642,209.97,209.9,4.7656]
[1738470970930,0.03571781,209.97,209.93,0.03556233]
[1738470971631,3.5,210.04,209.93,0.03556233]
[1738470971832,3.5,210.04,209.98,4.7639]
[1738470972238,3.5,210.04,209.92,17.20021058]
[1738470972631,3.5,210.04,209.97,4.7641]
[1738470972929,0.03433027,210.0,209.96,0.03341064]
[1738470974124,17.20021058,210.08,209.96,0.03341064]
[1738470974330,3.5,210.1,209.96,0.03341064]
[1738470974631,3.5,210.1,209.96,17.20021058]
[1738470974832,3.5,210.1,209.97,1.4838]
[1738470975027,4.7615,210.09,210.01,4.7631]
[1738470975328,17.20021058,210.16,210.01,4.7631]
[1738470975329,0.03338577,210.06,210.01,0.03344856]
[1738470975634,3.5,210.17,210.0,17.20021058]
[1738470975831,17.20021058,210.25,210.08,17.20021058]
[1738470976036,17.20021058,210.25,210.09,1.4838]
[1738470976627,0.03341276,210.19,210.15,0.03123536]
[1738470977733,4.7595,210.18,210.15,0.03123536]
[1738470977931,0.03341276,210.19,210.15,0.03123536]
[1738470978135,21.95991058,210.17,210.15,0.03123536]
[1738470978629,17.20021058,210.17,210.01,1.4648]
[1738470978932,17.20021058,210.17,210.02,1.5654]
[1738470979531,4.76,210.16,210.07,4.7617]
[1738470979934,0.0349603,210.14,210.09,0.03097749]
[1738470981830,0.0349603,210.14,210.12,4.7607]
[1738470982431,0.0349603,210.14,210.09,0.03097749]
[1738470982630,0.0349603,210.14,210.1,4.761]
[1738470982833,0.0349603,210.14,210.09,0.03097749]
[1738470983338,0.0349603,210.14,210.12,4.7608]
[1738470983837,0.0349603,210.14,210.09,0.03097749]
[1738470985138,17.20021058,210.13,210.09,0.03097749]
[1738470985538,0.0349603,210.14,210.09,0.03097749]
[1738470986040,4.7606,210.13,210.09,0.03097749]
[1738470986540,4.7953603,210.14,210.09,0.03097749]
[1738470987038,0.0349603,210.14,210.09,0.03097749]
[1738470987237,17.20021058,210.25,210.09,0.03097749]
[1738470987436,17.20021058,210.21,210.09,0.03097749]
[1738470987740,17.20021058,210.21,210.03,18.76751058]
[1738470988341,0.03217751,210.14,210.1,0.03530011]
[1738470989644,4.79267751,210.14,210.1,0.03530011]
[1738470989842,0.03217751,210.14,210.1,0.03530011]
[1738470990043,4.7608,210.12,210.1,0.03530011]
[1738470990345,17.20021058,210.13,210.1,0.03530011]
[1738470990540,0.03217751,210.14,210.1,0.03530011]
[1738470990942,17.20021058,210.21,210.1,0.03530011]
[1738470991242,17.20021058,210.25,210.07,17.20021058]
[1738470991840,4.7587,210.22,210.15,4.7601]
[1738470992043,17.20021058,210.25,210.07,17.20021058]
[1738470992245,0.03205674,210.21,210.16,0.03442124]
[1738470992444,18.65011058,210.33,210.16,0.03442124]
[1738470992739,18.65011058,210.33,210.15,17.20021058]
[1738470993045,5.93661699,210.29,210.15,17.20021058]
[1738470993741,5.93661699,210.29,210.2,0.03635206]
[1738470993946,17.20021058,210.33,210.2,0.03635206]
[1738470994444,20.70021058,210.37,210.24,0.03156892]
[1738470994636,4.7558,210.34,210.26,4.7575]
[1738470995039,4.7554,210.36,210.28,0.03068366]
[1738470995338,4.7554,210.36,210.24,4.758]
[1738470995540,4.7554,210.36,210.25,2.9114]
[1738470995843,1.4959,210.42,210.33,4.7559]
[1738470996035,1.1789353,210.44,210.33,4.7559]
[1738470996443,21.95421058,210.43,210.36,0.03530504]
[1738470996645,1.1789353,210.44,210.36,0.03530504]
[1738470996848,17.20021058,210.47,210.36,0.03530504]
[1738470997151,4.7527,210.48,210.36,0.03530504]
[1738470997349,17.20021058,210.51,210.37,4.755]
[1738470997745,17.20021058,210.51,210.38,1.5161]
[1738470998151,17.20021058,210.51,210.42,0.03227776]
[1738470998346,4.7534,210.45,210.42,0.03227776]
[1738470998552,17.20021058,210.47,210.42,0.03227776]
[1738470998854,17.20021058,210.43,210.42,0.03227776]
[1738470999448,4.7536,210.44,210.42,0.03227776]
[1738470999650,17.20021058,210.47,210.42,0.03227776]
[1738471000354,4.7528,210.48,210.42,0.03227776]
[1738471000556,21.95231058,210.51,210.42,0.03227776]
[1738471000751,17.20021058,210.51,210.42,0.03227776]
[1738471000951,17.20021058,210.51,210.42,4.78607776]
[1738471001253,4.7522,210.5,210.42,0.03227776]
[1738471002052,17.20021058,210.51,210.42,0.03227776]
[1738471002653,4.7507,210.57,210.42,0.03227776]
[1738471002854,17.20021058,210.54,210.42,0.03227776]
[1738471003157,17.20021058,210.54,210.4,1.4415]
[1738471003356,17.20021058,210.54,210.46,0.03348414]
[1738471004253,17.20021058,210.5,210.46,0.03348414]
[1738471004460,4.7528,210.48,210.46,0.03348414]
[1738471005159,21.95261058,210.5,210.46,0.03348414]
[1738471005456,1.4573,210.53,210.46,0.03348414]
[1738471006060,4.7527,210.48,210.46,0.03348414]
[1738471007459,17.20021058,210.47,210.46,0.03348414]
[1738471007663,4.754,210.43,210.38,1.5161]
[1738471008161,17.20021058,210.47,210.38,1.5161]
[1738471008765,0.0317252,210.45,210.4,0.03400013]
[1738471009165,4.7541,210.42,210.4,0.03400013]
[1738471009563,17.20021058,210.43,210.4,0.03400013]
[1738471010964,4.7542,210.41,210.4,0.03400013]
[1738471012362,4.7542,210.41,210.29,1.4232]
[1738471012363,4.7555,210.36,210.3,4.7567]
[1738471012569,17.20021058,210.39,210.3,4.7567]
[1738471013062,17.20021058,210.39,210.21,17.20021058]
[1738471013268,17.20021058,210.35,210.22,4.379]
[1738471013460,4.7565,210.32,210.22,4.379]
[1738471013667,0.03619246,210.34,210.3,0.03193078]
[1738471013870,17.20021058,210.35,210.24,4.7581]
[1738471014167,0.03104898,210.34,210.3,0.03487042]
[1738471014567,4.7574,210.28,210.18,1.4397]
[1738471014770,17.20021058,210.31,210.2,4.7588]
[1738471015160,4.7576,210.27,210.18,1.4397]
[1738471015865,0.03057631,210.25,210.2,0.03576788]
[1738471020574,17.20021058,210.35,210.2,0.03576788]
[1738471020875,17.20021058,210.35,210.27,4.7573]
[1738471021672,0.03529384,210.33,210.29,0.0345062]
[1738471023376,4.7567,210.3,210.29,0.0345062]
[1738471024673,4.758,210.25,210.18,1.4397]
[1738471025273,17.20021058,210.35,210.18,1.4397]
[1738471025874,0.03321592,210.29,210.24,0.03214415]
[1738471026075,17.20021058,210.39,210.24,0.03214415]
[1738471026468,17.20021058,210.39,210.22,17.20021058]
[1738471026874,17.20021058,210.39,210.18,18.63991058]
[1738471027076,17.20021058,210.35,210.18,18.63991058]
[1738471027480,4.7567,210.3,210.26,0.03602743]
[1738471027974,4.7574,210.27,210.26,0.03602743]
[1738471029180,4.7571,210.29,210.26,0.03602743]
[1738471029479,17.23112497,210.31,210.26,0.03602743]
[1738471029684,4.7573,210.28,210.26,0.03602743]
[1738471030079,17.23112497,210.31,210.26,0.03602743]
[1738471030981,0.03091439,210.31,210.26,0.03602743]
[1738471031683,0.03091439,210.31,210.28,4.757]
[1738471031983,0.03091439,210.31,210.26,0.03602743]
[1738471032483,0.03091439,210.31,210.3,4.7567]
[1738471032777,0.03091439,210.31,210.26,0.03602743]
[1738471032979,17.23112497,210.31,210.26,0.03602743]
[1738471033378,4.7568,210.3,210.26,0.03602743]
[1738471033572,17.23112497,210.31,210.26,0.03602743]
[1738471034483,4.7574,210.27,210.26,0.03602743]
[1738471035384,17.23112497,210.31,210.26,0.03602743]
[1738471035584,4.7569,210.29,210.26,0.03602743]
[1738471035983,0.03091439,210.31,210.26,0.03602743]
[1738471036377,0.03091439,210.31,210.28,4.7569]
[1738471036783,0.03091439,210.31,210.26,0.03602743]
[1738471037489,4.7568,210.3,210.26,0.03602743]
[1738471037690,17.23112497,210.31,210.26,0.03602743]
[1738471038588,0.03091439,210.31,210.26,0.03602743]
[1738471038993,4.78761439,210.31,210.26,0.03602743]
[1738471039194,0.03091439,210.31,210.26,0.03602743]
[1738471040191,0.03091439,210.31,210.26,4.79342743]
[1738471040894,0.03091439,210.31,210.26,0.03602743]
[1738471041286,17.23112497,210.31,210.26,0.03602743]
[1738471041692,4.7574,210.27,210.26,0.03602743]
[1738471043892,4.759,210.21,210.06,17.20021058]
[1738471044086,17.20021058,210.27,210.12,1.4492]
[1738471044995,0.03365275,210.22,210.12,1.4492]
[1738471045196,0.03365275,210.22,210.17,0.03173477]
[1738471045894,4.79215275,210.22,210.17,0.03173477]
[1738471046594,4.7588,210.21,210.17,0.03173477]
[1738471046992,0.03365275,210.22,210.17,0.03173477]
[1738471048898,4.7594,210.18,210.17,0.03173477]
[1738471050707,17.20021058,210.19,210.17,0.03173477]
[1738471050902,0.03365275,210.22,210.17,0.03173477]
[1738471051203,0.03365275,210.22,210.18,4.7594]
[1738471051402,4.79215275,210.22,210.18,4.7594]
[1738471052200,0.03365275,210.22,210.17,0.03173477]
[1738471052402,0.03365275,210.22,210.19,4.7591]
[1738471053305,0.03365275,210.22,210.17,0.03173477]
[1738471054204,4.759,210.2,210.17,0.03173477]
[1738471055103,4.7592,210.19,210.17,0.03173477]
[1738471056104,4.759,210.21,210.17,0.03173477]
[1738471056308,0.03365275,210.22,210.17,0.03173477]
[1738471057799,0.03365275,210.22,210.21,4.7587]
[1738471058005,0.03365275,210.22,210.18,4.4529]
[1738471058410,0.03365275,210.22,210.18,9.2123]
[1738471059006,4.7588,210.21,210.18,3.0188]
[1738471059306,0.03365275,210.22,210.18,1.459]
[1738471060313,0.03365275,210.22,210.17,0.03173477]
[1738471060909,4.79235275,210.22,210.17,0.03173477]
[1738471061209,0.03365275,210.22,210.17,0.03173477]
[1738471062810,4.7588,210.21,210.17,0.03173477]
[1738471064708,4.7594,210.18,210.17,0.03173477]
[1738471067204,17.20021058,210.19,210.09,1.4444]
[1738471067410,17.20021058,210.15,210.09,1.4444]
[1738471067610,17.20021058,210.15,210.03,1.4416]
[1738471067811,17.20021058,210.15,210.03,2.9518]
[1738471068009,17.20021058,210.11,210.03,2.9518]
[1738471068516,0.03021907,210.09,210.05,0.03204027]
[1738471068812,4.7621,210.06,209.9,18.64181058]
[1738471069012,17.20021058,210.07,209.91,6.02987385]
[1738471069212,17.20021058,210.07,209.92,2.99637385]
[1738471069410,4.7624,210.05,209.92,2.99637385]
[1738471069615,17.20021058,210.07,209.93,2.99483072]
[1738471069912,17.20021058,210.07,209.91,3.0335]
[1738471070109,0.03130969,210.02,209.98,0.03020571]
[1738471070615,4.7633,210.01,209.98,0.03020571]
[1738471070815,0.03130969,210.02,209.98,0.03020571]
[1738471071408,4.79440969,210.02,209.98,0.03020571]
[1738471071913,0.03130969,210.02,209.98,0.03020571]
[1738471072413,4.7635,210.0,209.98,0.03020571]
[1738471074716,4.7637,209.99,209.98,0.03020571]
[1738471075209,17.20021058,209.99,209.9,4.7656]
[1738471076313,0.03018986,209.97,209.92,0.03113805]
[1738471076714,4.765,209.94,209.92,0.03113805]
[1738471077017,0.03018986,209.97,209.92,0.03113805]
[1738471077810,4.7651,209.93,209.92,0.03113805]
[1738471080321,4.7648,209.95,209.92,0.03113805]
[1738471080620,0.03018986,209.97,209.92,0.03113805]
[1738471081511,0.03018986,209.97,209.96,4.7644]
[1738471082420,3.48,210.1,209.93,17.20021058]
[1738471082725,3.48,210.1,210.04,4.7624]
[1738471083117,3.48,210.1,209.97,17.20021058]
[1738471083421,21.96041058,210.15,210.07,4.7618]
[1738471083721,0.03056483,210.06,209.98,3.099]
[1738471084014,4.7602,210.15,210.09,0.03442487]
[1738471084220,3.48,210.19,209.98,3.099]
[1738471084415,4.7598,210.17,210.08,4.7616]
[1738471084620,3.48,210.19,210.08,4.7616]
[1738471084811,3.48,210.19,209.98,3.099]
[1738471085216,0.02999561,210.11,210.06,0.03410775]
[1738471085420,0.02999561,210.11,210.07,4.7617]
[1738471085620,17.20021058,210.17,210.08,1.4982]
[1738471086219,21.95991058,210.17,210.09,4.7614]
[1738471086921,0.03399224,210.15,210.11,0.03238338]
[1738471087721,4.7607,210.13,210.11,0.03238338]
[1738471088321,21.96091058,210.13,210.11,0.03238338]
[1738471088722,17.20021058,210.13,209.98,1.5282]
[1738471089215,17.20021058,210.13,209.99,1.4665]
[1738471089416,17.20021058,210.09,209.99,1.4665]
[1738471089821,0.03213713,210.06,210.02,0.03604567]
[1738471090022,4.7626,210.04,210.02,0.03604567]
[1738471091025,21.96271058,210.05,210.02,0.03604567]
[1738471091324,17.20021058,210.05,210.02,0.03604567]
[1738471091925,4.7626,210.04,210.02,0.03604567]
[1738471092825,4.7633,210.01,209.91,3.0686]
[1738471093026,17.20021058,210.05,209.92,1.4776]